fUST/lending_fUST_20240713
["ID","MTS","AMOUNT","RATE_DAILY","PERIOD"]
[331903317,1720824655076,-500.0,0.00026301,2]
[331903318,1720824655085,-500.0,0.00026301,2]
[331903319,1720824655095,-923.4,0.00026301,2]
[331903320,1720824655104,-500.0,0.00026301,2]
[331903321,1720824655113,-500.0,0.00026301,2]
[331903322,1720824655123,-500.0,0.00026301,2]
[331903323,1720824655132,-151.0,0.00026301,7]
[331903324,1720824655142,-500.0,0.00026301,2]
[331903325,1720824655152,-500.0,0.00026301,2]
[331903326,1720824655161,-500.0,0.00026301,2]
[331903327,1720824655171,-956.84,0.00026301,2]
[331903328,1720824655181,-500.0,0.00026301,2]
[331903329,1720824655190,-32592.5,0.00026301,2]
[331903330,1720824655200,-500.0,0.00026301,2]
[331903331,1720824655210,-500.0,0.00026301,2]
[331903332,1720824655220,-500.0,0.00026301,2]
[331903333,1720824655229,-595.19,0.00026301,2]
[331903334,1720824655239,-500.0,0.00026301,2]
[331903335,1720824655249,-500.0,0.00026301,2]
[331903336,1720824655261,-500.0,0.00026301,2]
[331903337,1720824655270,-500.0,0.00026301,2]
[331903338,1720824655280,-500.0,0.00026301,2]
[331903339,1720824655292,-601.83448276,0.00026301,2]
[331903340,1720824655303,-2495.59,0.00026301,2]
[331903341,1720824655315,-500.0,0.00026301,2]
[331903342,1720824655324,-500.0,0.00026301,2]
[331903343,1720824655334,-500.0,0.00026301,2]
[331903344,1720824655343,-500.0,0.00026301,2]
[331903345,1720824655354,-401.77469905,0.00026301,2]
[331903346,1720824655363,-4347.6,0.00026301,2]
[331903347,1720824655373,-500.0,0.00026301,2]
[331903348,1720824655382,-500.0,0.00026301,2]
[331903349,1720824655393,-500.0,0.00026301,2]
[331903350,1720824655403,-500.0,0.00026301,2]
[331903351,1720824655412,-1331.28,0.00026301,2]
[331903352,1720824655423,-500.0,0.00026301,2]
[331903353,1720824655433,-308.018372,0.00026301,7]
[331903354,1720824655442,-500.0,0.00026301,2]
[331903355,1720824655452,-308.018372,0.00026301,7]
[331903356,1720824655461,-500.0,0.00026301,2]
[331903357,1720824655471,-205.53042343,0.00026303,2]
[331903358,1720824655480,-530.40352659,0.00026314,2]
[331903359,1720824655490,-150.11223344,0.000264,4]
[331903360,1720824655499,-205.53042343,0.00026473,2]
[331903361,1720824655508,-150.11223344,0.000265,5]
[331903362,1720824655517,-3000.0,0.000265,2]
[331903363,1720824655527,-611.0,0.000265,2]
[331903364,1720824655536,-3000.0,0.0002651,2]
[331903365,1720824655545,-3000.0,0.0002652,2]
[331903366,1720824655555,-3000.0,0.0002653,2]
[331903367,1720824655565,-3000.0,0.0002654,2]
[331903368,1720824655574,-153.29155785,0.00026541,2]
[331903369,1720824655584,-3000.0,0.0002655,2]
[331903370,1720824655594,-3000.0,0.0002656,2]
[331903371,1720824655603,-151.0,0.00026562,2]
[331903372,1720824655612,-151.0,0.00026562,2]
[331903373,1720824655621,-157.95591486,0.00026568,2]
[331903374,1720824655662,-3000.0,0.0002657,2]
[331903375,1720824655671,-151.0,0.00026574,2]
[331903376,1720824655681,-165.25732412,0.00026574,2]
[331903377,1720824655691,-500.0,0.00026575,2]
[331903378,1720824655699,-500.0,0.00026575,2]
[331903379,1720824655709,-299.1329887,0.00026575,2]
[331903380,1720824655719,-500.0,0.00026575,2]
[331903381,1720824655730,-500.0,0.00026575,2]
[331903382,1720824655739,-500.0,0.00026575,2]
[331903383,1720824655749,-201.05189818,0.00026575,2]
[331903384,1720824655758,-500.0,0.00026575,2]
[331903385,1720824655768,-500.0,0.00026575,2]
[331903386,1720824655777,-500.0,0.00026575,2]
[331903387,1720824655788,-500.0,0.00026575,2]
[331903388,1720824655798,-500.0,0.00026575,2]
[331903389,1720824655808,-500.0,0.00026575,2]
[331903390,1720824655819,-500.0,0.00026575,2]
[331903391,1720824655830,-500.0,0.00026575,2]
[331903392,1720824655842,-500.0,0.00026575,2]
[331903393,1720824655851,-500.0,0.00026575,2]
[331903394,1720824655860,-500.0,0.00026575,2]
[331903395,1720824655869,-500.0,0.00026575,2]
[331903396,1720824655878,-500.0,0.00026575,2]
[331903397,1720824655888,-584.96,0.00026575,2]
[331903398,1720824655897,-500.0,0.00026575,2]
[331903399,1720824655907,-255.211587,0.00026575,2]
[331903400,1720824655917,-500.0,0.00026575,2]
[331903401,1720824655928,-500.0,0.00026575,2]
[331903402,1720824655939,-291.62865583,0.00026575,2]
[331903403,1720824655951,-500.0,0.00026575,2]
[331903404,1720824655960,-500.0,0.00026575,2]
[331903405,1720824655970,-500.0,0.00026575,2]
[331903406,1720824655979,-500.0,0.00026575,2]
[331903407,1720824655988,-500.0,0.00026575,2]
[331903408,1720824655997,-500.0,0.00026575,2]
[331903409,1720824656006,-500.0,0.00026575,2]
[331903410,1720824656015,-500.0,0.00026575,2]
[331903411,1720824656024,-500.0,0.00026575,2]
[331903412,1720824656035,-462.50583476,0.00026575,2]
[331903413,1720824656044,-574.54,0.00026575,2]
[331903414,1720824656053,-500.0,0.00026575,2]
[331903415,1720824656062,-688.07,0.00026575,2]
[331903416,1720824656071,-492.60712779,0.00026575,2]
[331903417,1720824656081,-500.0,0.00026575,2]
[331903418,1720824656090,-500.0,0.00026575,2]
[331903419,1720824656100,-500.0,0.00026575,2]
[331903420,1720824656109,-500.0,0.00026575,2]
[331903421,1720824656118,-500.0,0.00026575,2]
[331903422,1720824656127,-500.0,0.00026575,2]
[331903423,1720824656136,-974.67,0.00026575,2]
[331903424,1720824656145,-500.0,0.00026575,2]
[331903425,1720824656154,-500.0,0.00026575,2]
[331903426,1720824656163,-500.0,0.00026575,2]
[331903427,1720824656172,-500.0,0.00026575,2]
[331903428,1720824656182,-500.0,0.00026575,2]
[331903429,1720824656191,-500.0,0.00026575,2]
[331903430,1720824656200,-500.0,0.00026575,2]
[331903431,1720824656209,-500.0,0.00026575,2]
[331903432,1720824656218,-500.0,0.00026575,2]
[331903433,1720824656227,-500.0,0.00026575,2]
[331903434,1720824656236,-500.0,0.00026575,2]
[331903435,1720824656246,-1500.0,0.00026575,2]
[331903436,1720824656260,-500.0,0.00026575,2]
[331903437,1720824656269,-500.0,0.00026575,2]
[331903438,1720824656278,-408.19251566,0.00026575,2]
[331903439,1720824656289,-500.0,0.00026575,2]
[331903440,1720824656299,-2060.0,0.00026575,2]
[331903441,1720824656308,-543.45,0.00026575,2]
[331903442,1720824656317,-500.0,0.00026575,2]
[331903443,1720824656327,-198.71465394,0.00026575,2]
[331903444,1720824656338,-964.15,0.00026575,2]
[331903445,1720824656349,-500.0,0.00026575,2]
[331903446,1720824656358,-201.01837567,0.00026575,2]
[331903447,1720824656367,-500.0,0.00026575,2]
[331903448,1720824656376,-500.0,0.00026575,2]
[331903449,1720824656386,-150.26815741,0.00026575,2]
[331903450,1720824656395,-656.37,0.00026575,2]
[331903451,1720824656406,-500.0,0.00026575,2]
[331903452,1720824656417,-500.0,0.00026575,2]
[331903453,1720824656427,-500.0,0.00026575,2]
[331903454,1720824656438,-500.0,0.00026575,2]
[331903455,1720824656448,-500.0,0.00026575,2]
[331903456,1720824656459,-500.0,0.00026575,2]
[331903457,1720824656471,-500.0,0.00026575,2]
[331903458,1720824656480,-500.0,0.00026575,2]
[331903459,1720824656489,-565.17,0.00026575,2]
[331903460,1720824656498,-500.0,0.00026575,2]
[331903461,1720824656508,-500.0,0.00026575,2]
[331903462,1720824656518,-500.0,0.00026575,2]
[331903463,1720824656527,-500.0,0.00026575,2]
[331903464,1720824656538,-923.4,0.00026575,2]
[331903465,1720824656548,-500.0,0.00026575,2]
[331903466,1720824656557,-500.0,0.00026575,2]
[331903467,1720824656566,-500.0,0.00026575,2]
[331903468,1720824656575,-280.94393061,0.00026575,2]
[331903469,1720824656584,-151.0,0.00026575,7]
[331903470,1720824656594,-500.0,0.00026575,2]
[331903471,1720824656603,-500.0,0.00026575,2]
[331903472,1720824656612,-956.84,0.00026575,2]
[331903473,1720824656621,-500.0,0.00026575,2]
[331903474,1720824656630,-596.04335444,0.00026575,2]
[331903475,1720824656640,-32592.5,0.00026575,2]
[331903476,1720824656650,-500.0,0.00026575,2]
[331903477,1720824656659,-393.41225289,0.00026575,2]
[331903478,1720824656669,-500.0,0.00026575,2]
[331903479,1720824656678,-595.19,0.00026575,2]
[331903480,1720824656687,-500.0,0.00026575,2]
[331903481,1720824656697,-500.0,0.00026575,2]
[331903482,1720824656706,-500.0,0.00026575,2]
[331903483,1720824656715,-500.0,0.00026575,2]
[331903484,1720824656724,-500.0,0.00026575,2]
[331903485,1720824656734,-2495.59,0.00026575,2]
[331903486,1720824656744,-500.0,0.00026575,2]
[331903487,1720824656754,-500.0,0.00026575,2]
[331903488,1720824656764,-500.0,0.00026575,2]
[331903489,1720824656774,-500.0,0.00026575,2]
[331903490,1720824656786,-4347.6,0.00026575,2]
[331903491,1720824656797,-500.0,0.00026575,2]
[331903492,1720824656807,-500.0,0.00026575,2]
[331903493,1720824656817,-500.0,0.00026575,2]
[331903494,1720824656827,-500.0,0.00026575,2]
[331903495,1720824656838,-1331.28,0.00026575,2]
[331903496,1720824656847,-308.018372,0.00026575,7]
[331903497,1720824656858,-500.0,0.00026575,2]
[331903498,1720824656867,-308.018372,0.00026575,7]
[331903499,1720824656877,-500.0,0.00026575,2]
[331903500,1720824656887,-3000.0,0.0002658,2]
[331903501,1720824656896,-3000.0,0.0002659,2]
[331903502,1720824656906,-2059.8239301,0.000266,2]
[331903503,1720824656916,-150.11223344,0.000266,3]
[331903504,1720824656925,-3000.0,0.000266,2]
[331903505,1720824656935,-3000.0,0.0002661,2]
[331903506,1720824656944,-3000.0,0.0002662,2]
[331903507,1720824656954,-153.0,0.00026629,2]
[331903508,1720824656963,-3000.0,0.0002663,2]
[331903509,1720824656972,-3000.0,0.0002664,2]
[331903510,1720824656982,-3000.0,0.0002665,2]
[331903511,1720824656992,-3000.0,0.0002666,2]
[331903512,1720824657001,-3000.0,0.0002667,2]
[331903513,1720824657011,-3000.0,0.0002668,2]
[331903514,1720824657022,-3000.0,0.0002669,2]
[331903515,1720824657032,-158.346894,0.000267,2]
[331903516,1720824657041,-3000.0,0.000267,2]
[331903517,1720824657051,-3000.0,0.0002671,2]
[331903518,1720824657061,-3000.0,0.0002672,2]
[331903519,1720824657070,-3000.0,0.0002673,2]
[331903520,1720824657080,-3000.0,0.0002674,2]
[331903521,1720824657090,-157.95591486,0.00026744,2]
[331903522,1720824657099,-205.53042343,0.00026748,2]
[331903523,1720824657109,-3000.0,0.0002675,2]
[331903524,1720824657119,-3000.0,0.0002676,2]
[331903525,1720824657129,-3000.0,0.0002677,2]
[331903526,1720824657139,-3000.0,0.0002678,2]
[331903527,1720824657148,-205.53042343,0.00026785,2]
[331903528,1720824657157,-3000.0,0.0002679,2]
[331903529,1720824657167,-3000.0,0.000268,2]
[331903530,1720824657176,-3000.0,0.0002681,2]
[331903531,1720824657185,-530.40352659,0.00026816,2]
[331903532,1720824657195,-3000.0,0.0002682,2]
[331903533,1720824657205,-3000.0,0.0002683,2]
[331903534,1720824657215,-308.018372,0.0002683,7]
[331903535,1720824657224,-308.018372,0.0002683,7]
[331903536,1720824657234,-151.0,0.00026838,2]
[331903537,1720824657243,-151.0,0.00026838,2]
[331903538,1720824657254,-3000.0,0.0002684,2]
[331903539,1720824657267,-555.62620579,0.00026849,2]
[331903540,1720824657277,-500.0,0.00026849,2]
[331903541,1720824657286,-500.0,0.00026849,2]
[331903542,1720824657295,-500.0,0.00026849,2]
[331903543,1720824657306,-500.0,0.00026849,2]
[331903544,1720824657316,-500.0,0.00026849,2]
[331903545,1720824657325,-500.0,0.00026849,2]
[331903546,1720824657337,-500.0,0.00026849,2]
[331903547,1720824657346,-500.0,0.00026849,2]
[331903548,1720824657357,-500.0,0.00026849,2]
[331903549,1720824657366,-500.0,0.00026849,2]
[331903550,1720824657375,-500.0,0.00026849,2]
[331903551,1720824657384,-500.0,0.00026849,2]
[331903552,1720824657393,-500.0,0.00026849,2]
[331903553,1720824657403,-500.0,0.00026849,2]
[331903554,1720824657412,-500.0,0.00026849,2]
[331903555,1720824657422,-500.0,0.00026849,2]
[331903556,1720824657431,-500.0,0.00026849,2]
[331903557,1720824657441,-584.96,0.00026849,2]
[331903558,1720824657450,-500.0,0.00026849,2]
[331903559,1720824657459,-500.0,0.00026849,2]
[331903560,1720824657469,-500.0,0.00026849,2]
[331903561,1720824657478,-500.0,0.00026849,2]
[331903562,1720824657487,-500.0,0.00026849,2]
[331903563,1720824657497,-500.0,0.00026849,2]
[331903564,1720824657506,-500.0,0.00026849,2]
[331903565,1720824657515,-500.0,0.00026849,2]
[331903566,1720824657525,-312.04735153,0.00026849,2]
[331903567,1720824657535,-500.0,0.00026849,2]
[331903568,1720824657545,-500.0,0.00026849,2]
[331903569,1720824657555,-500.0,0.00026849,2]
[331903570,1720824657564,-574.54,0.00026849,2]
[331903571,1720824657574,-500.0,0.00026849,2]
[331903572,1720824657583,-688.07,0.00026849,2]
[331903573,1720824657593,-500.0,0.00026849,2]
[331903574,1720824657603,-438.4862889,0.00026849,2]
[331903575,1720824657612,-641.18356243,0.00026849,2]
[331903576,1720824657622,-500.0,0.00026849,2]
[331903577,1720824657632,-500.0,0.00026849,2]
[331903578,1720824657641,-500.0,0.00026849,2]
[331903579,1720824657650,-974.67,0.00026849,2]
[331903580,1720824657660,-500.0,0.00026849,2]
[331903581,1720824657669,-500.0,0.00026849,2]
[331903582,1720824657678,-500.0,0.00026849,2]
[331903583,1720824657688,-500.0,0.00026849,2]
[331903584,1720824657697,-500.0,0.00026849,2]
[331903585,1720824657707,-500.0,0.00026849,2]
[331903586,1720824657717,-205.04541481,0.00026849,2]
[331903587,1720824657727,-500.0,0.00026849,2]
[331903588,1720824657736,-500.0,0.00026849,2]
[331903589,1720824657746,-500.0,0.00026849,2]
[331903590,1720824657756,-1500.0,0.00026849,2]
[331903591,1720824657766,-500.0,0.00026849,2]
[331903592,1720824657775,-500.0,0.00026849,2]
[331903593,1720824657786,-500.0,0.00026849,2]
[331903594,1720824657795,-2060.0,0.00026849,2]
[331903595,1720824657804,-543.45,0.00026849,2]
[331903596,1720824657814,-500.0,0.00026849,2]
[331903597,1720824657825,-964.15,0.00026849,2]
[331903598,1720824657835,-500.0,0.00026849,2]
[331903599,1720824657844,-500.0,0.00026849,2]
[331903600,1720824657853,-500.0,0.00026849,2]
[331903601,1720824657863,-656.37,0.00026849,2]
[331903602,1720824657873,-500.0,0.00026849,2]
[331903603,1720824657882,-500.0,0.00026849,2]
[331903604,1720824657893,-500.0,0.00026849,2]
[331903605,1720824657902,-500.0,0.00026849,2]
[331903606,1720824657913,-500.0,0.00026849,2]
[331903607,1720824657923,-500.0,0.00026849,2]
[331903608,1720824657932,-500.0,0.00026849,2]
[331903609,1720824657944,-565.17,0.00026849,2]
[331903610,1720824657956,-500.0,0.00026849,2]
[331903611,1720824657968,-500.0,0.00026849,2]
[331903612,1720824657978,-352.39395325,0.00026849,2]
[331903613,1720824657988,-500.0,0.00026849,2]
[331903614,1720824657997,-500.0,0.00026849,2]
[331903615,1720824658006,-923.4,0.00026849,2]
[331903616,1720824658016,-500.0,0.00026849,2]
[331903617,1720824658025,-500.0,0.00026849,2]
[331903618,1720824658036,-151.0,0.00026849,7]
[331903619,1720824658046,-500.0,0.00026849,2]
[331903620,1720824658055,-528.83882499,0.00026849,2]
[331903621,1720824658066,-956.84,0.00026849,2]
[331903622,1720824658076,-500.0,0.00026849,2]
[331903623,1720824658085,-32592.5,0.00026849,2]
[331903624,1720824658095,-500.0,0.00026849,2]
[331903625,1720824658105,-500.0,0.00026849,2]
[331903626,1720824658115,-595.19,0.00026849,2]
[331903627,1720824658124,-500.0,0.00026849,2]
[331903628,1720824658133,-500.0,0.00026849,2]
[331903629,1720824658143,-422.1418869,0.00026849,2]
[331903630,1720824658152,-464.04139534,0.00026849,2]
[331903631,1720824658161,-500.0,0.00026849,2]
[331903632,1720824658170,-2495.59,0.00026849,2]
[331903633,1720824658180,-500.0,0.00026849,2]
[331903634,1720824658189,-500.0,0.00026849,2]
[331903635,1720824658200,-500.0,0.00026849,2]
[331903636,1720824658209,-500.0,0.00026849,2]
[331903637,1720824658220,-4347.6,0.00026849,2]
[331903638,1720824658230,-500.0,0.00026849,2]
[331903639,1720824658241,-500.0,0.00026849,2]
[331903640,1720824658251,-500.0,0.00026849,2]
[331903641,1720824658265,-500.0,0.00026849,2]
[331903642,1720824658274,-1331.28,0.00026849,2]
[331903643,1720824658284,-500.0,0.00026849,2]
[331903644,1720824658296,-500.0,0.00026849,2]
[331903645,1720824658306,-3000.0,0.0002685,2]
[331903646,1720824658315,-530.40352659,0.00026855,2]
[331903647,1720824658325,-152.71751146,0.00026855,2]
[331903648,1720824658338,-205.53042343,0.00026856,2]
[331903649,1720824658348,-3000.0,0.0002686,2]
[331903650,1720824658357,-3000.0,0.0002687,2]
[331903651,1720824658367,-3000.0,0.0002688,2]
[331903652,1720824658378,-3000.0,0.0002689,2]
[331903653,1720824658387,-4175.586431,0.000269,2]
[331903654,1720824658397,-308.018372,0.000269,7]
[331903655,1720824658408,-308.018364,0.000269,7]
[331903656,1720824658417,-205.53042343,0.00026903,2]
[331903657,1720824658427,-205.53042343,0.00026961,2]
[331903658,1720824658436,-153.79107762,0.00026972,2]
[331903659,1720824658445,-659.31259948,0.00027,2]
[331903660,1720824658455,-530.40352659,0.00027012,2]
[331903661,1720824658464,-659.31259948,0.0002703,2]
[331903662,1720824658474,-150.11223344,0.000271,4]
[331903663,1720824658483,-151.0,0.00027115,2]
[331903664,1720824658492,-151.0,0.00027115,2]
[331903665,1720824658502,-401.35230351,0.00027123,2]
[331903666,1720824658511,-500.0,0.00027123,2]
[331903667,1720824658520,-500.0,0.00027123,2]
[331903668,1720824658530,-500.0,0.00027123,2]
[331903669,1720824658542,-500.0,0.00027123,2]
[331903670,1720824658551,-500.0,0.00027123,2]
[331903671,1720824658563,-500.0,0.00027123,2]
[331903672,1720824658572,-500.0,0.00027123,2]
[331903673,1720824658582,-500.0,0.00027123,2]
[331903674,1720824658593,-500.0,0.00027123,2]
[331903675,1720824658603,-500.0,0.00027123,2]
[331903676,1720824658718,-500.0,0.00027123,2]
[331903677,1720824658727,-500.0,0.00027123,2]
[331903678,1720824658737,-500.0,0.00027123,2]
[331903679,1720824658746,-500.0,0.00027123,2]
[331903680,1720824658755,-500.0,0.00027123,2]
[331903681,1720824658765,-500.0,0.00027123,2]
[331903682,1720824658774,-584.96,0.00027123,2]
[331903683,1720824658785,-500.0,0.00027123,2]
[331903684,1720824658796,-500.0,0.00027123,2]
[331903685,1720824658806,-500.0,0.00027123,2]
[331903686,1720824658816,-500.0,0.00027123,2]
[331903687,1720824658825,-500.0,0.00027123,2]
[331903688,1720824658835,-500.0,0.00027123,2]
[331903689,1720824658844,-500.0,0.00027123,2]
[331903690,1720824658854,-500.0,0.00027123,2]
[331903691,1720824658863,-570.37074582,0.00027123,2]
[331903692,1720824658872,-500.0,0.00027123,2]
[331903693,1720824658882,-500.0,0.00027123,2]
[331903694,1720824658892,-574.54,0.00027123,2]
[331903695,1720824658901,-500.0,0.00027123,2]
[331903696,1720824658915,-688.07,0.00027123,2]
[331903697,1720824658925,-500.0,0.00027123,2]
[331903698,1720824658934,-500.0,0.00027123,2]
[331903699,1720824658944,-500.0,0.00027123,2]
[331903700,1720824658953,-575.08586764,0.00027123,2]
[331903701,1720824658963,-974.67,0.00027123,2]
[331903702,1720824658973,-388.87625302,0.00027123,2]
[331903703,1720824658982,-500.0,0.00027123,2]
[331903704,1720824658991,-307.59133802,0.00027123,2]
[331903705,1720824659001,-579.80485976,0.00027123,2]
[331903706,1720824659010,-500.0,0.00027123,2]
[331903707,1720824659020,-500.0,0.00027123,2]
[331903708,1720824659029,-500.0,0.00027123,2]
[331903709,1720824659040,-500.0,0.00027123,2]
[331903710,1720824659050,-500.0,0.00027123,2]
[331903711,1720824659060,-697.74,0.00027123,2]
[331903712,1720824659069,-500.0,0.00027123,2]
[331903713,1720824659078,-500.0,0.00027123,2]
[331903714,1720824659088,-162.39306937,0.00027123,2]
[331903715,1720824659098,-2060.0,0.00027123,2]
[331903716,1720824659107,-543.45,0.00027123,2]
[331903717,1720824659116,-278.92389086,0.00027123,2]
[331903718,1720824659126,-964.15,0.00027123,2]
[331903719,1720824659135,-500.0,0.00027123,2]
[331903720,1720824659145,-500.0,0.00027123,2]
[331903721,1720824659154,-500.0,0.00027123,2]
[331903722,1720824659163,-656.37,0.00027123,2]
[331903723,1720824659173,-506.70019399,0.00027123,2]
[331903724,1720824659182,-500.0,0.00027123,2]
[331903725,1720824659191,-500.0,0.00027123,2]
[331903726,1720824659201,-500.0,0.00027123,2]
[331903727,1720824659210,-500.0,0.00027123,2]
[331903728,1720824659220,-500.0,0.00027123,2]
[331903729,1720824659230,-500.0,0.00027123,2]
[331903730,1720824659241,-500.0,0.00027123,2]
[331903731,1720824659251,-565.17,0.00027123,2]
[331903732,1720824659266,-360.45963862,0.00027123,2]
[331903733,1720824659276,-500.0,0.00027123,2]
[331903734,1720824659289,-500.0,0.00027123,2]
[331903735,1720824659299,-923.4,0.00027123,2]
[331903736,1720824659308,-500.0,0.00027123,2]
[331903737,1720824659320,-220.47280318,0.00027123,2]
[331903738,1720824659329,-151.0,0.00027123,7]
[331903739,1720824659341,-500.0,0.00027123,2]
[331903740,1720824659351,-956.84,0.00027123,2]
[331903741,1720824659360,-500.0,0.00027123,2]
[331903742,1720824659370,-32592.5,0.00027123,2]
[331903743,1720824659378,-500.0,0.00027123,2]
[331903744,1720824659389,-500.0,0.00027123,2]
[331903745,1720824659399,-595.19,0.00027123,2]
[331903746,1720824659409,-500.0,0.00027123,2]
[331903747,1720824659419,-515.11881733,0.00027123,2]
[331903748,1720824659430,-500.0,0.00027123,2]
[331903749,1720824659439,-2495.59,0.00027123,2]
[331903750,1720824659449,-500.0,0.00027123,2]
[331903751,1720824659459,-500.0,0.00027123,2]
[331903752,1720824659468,-500.0,0.00027123,2]
[331903753,1720824659479,-500.0,0.00027123,2]
[331903754,1720824659490,-4347.6,0.00027123,2]
[331903755,1720824659499,-500.0,0.00027123,2]
[331903756,1720824659510,-500.0,0.00027123,2]
[331903757,1720824659521,-500.0,0.00027123,2]
[331903758,1720824659531,-500.0,0.00027123,2]
[331903759,1720824659543,-1331.28,0.00027123,2]
[331903760,1720824659553,-500.0,0.00027123,2]
[331903761,1720824659563,-500.0,0.00027123,2]
[331903762,1720824659572,-168.957575,0.00027123,2]
[331903763,1720824659582,-150.79426912,0.00027176,2]
[331903764,1720824659591,-157.95591486,0.00027177,2]
[331903765,1720824659601,-154.74847446,0.00027194,2]
[331903766,1720824659611,-362.906902,0.00027195,2]
[331903767,1720824659621,-205.53042343,0.00027223,2]
[331903768,1720824659630,-153.79107762,0.00027244,2]
[331903769,1720824659640,-150.42453828,0.0002731,2]
[331903770,1720824659650,-152.71751146,0.0002733,2]
[331903771,1720824659661,-150.42453828,0.00027351,2]
[331903772,1720824659670,-153.0,0.00027374,2]
[331903773,1720824659680,-153.0,0.00027374,2]
[331903774,1720824659689,-153.0,0.00027374,2]
[331903775,1720824659699,-153.0,0.00027374,2]
[331903776,1720824659709,-153.0,0.00027374,2]
[331903777,1720824659718,-153.0,0.00027374,2]
[331903778,1720824659728,-153.0,0.00027374,2]
[331903779,1720824659737,-153.0,0.00027374,2]
[331903780,1720824659747,-153.0,0.00027374,2]
[331903781,1720824659757,-153.0,0.00027374,2]
[331903782,1720824659767,-151.0,0.00027392,2]
[331903783,1720824659777,-151.0,0.00027392,2]
[331903784,1720824659786,-191.54756088,0.00027397,2]
[331903785,1720824659795,-500.0,0.00027397,2]
[331903786,1720824659805,-578.64353212,0.00027397,2]
[331903787,1720824659815,-578.64353212,0.00027397,2]
[331903788,1720824659825,-578.64353212,0.00027397,2]
[331903789,1720824659835,-578.64353212,0.00027397,2]
[331903790,1720824659845,-578.64353212,0.00027397,2]
[331903791,1720824659854,-578.64353212,0.00027397,2]
[331903792,1720824659864,-578.64353212,0.00027397,2]
[331903793,1720824659873,-578.64353212,0.00027397,2]
[331903794,1720824659883,-578.64353212,0.00027397,2]
[331903795,1720824659892,-578.64353212,0.00027397,2]
[331903796,1720824659902,-578.64353212,0.00027397,2]
[331903797,1720824659911,-578.64353212,0.00027397,2]
[331903798,1720824659921,-578.64353212,0.00027397,2]
[331903799,1720824659930,-578.64353212,0.00027397,2]
[331903800,1720824659939,-578.64353212,0.00027397,2]
[331903801,1720824659948,-578.64353212,0.00027397,2]
[331903802,1720824659957,-578.64353212,0.00027397,2]
[331903803,1720824659969,-578.64353212,0.00027397,2]
[331903804,1720824659980,-578.64353212,0.00027397,2]
[331903805,1720824659991,-578.64353212,0.00027397,2]
[331903806,1720824660002,-578.64353212,0.00027397,2]
[331903807,1720824660011,-578.64353212,0.00027397,2]
[331903808,1720824660022,-578.64353212,0.00027397,2]
[331903809,1720824660033,-578.64353212,0.00027397,2]
[331903810,1720824660043,-578.64353212,0.00027397,2]
[331903811,1720824660054,-578.64353212,0.00027397,2]
[331903812,1720824660064,-578.64353212,0.00027397,2]
[331903813,1720824660074,-578.64353212,0.00027397,2]
[331903814,1720824660084,-578.64353212,0.00027397,2]
[331903815,1720824660093,-578.64353212,0.00027397,2]
[331903816,1720824660103,-578.64353212,0.00027397,2]